[Event "Titled Tuesday Blitz January 03 Early 2023"]
[White "Yaran, Siar"]
[Black "Oliveira, Silvio Eduardo"]
[WhiteFideId "6323006"]
[BlackFideId "2111560"]
[WhiteElo "2288"]
[BlackElo "2297"]
[Result "1/2-1/2"]
[Round "02"]
[TimeControl "180+2"]
[Date "2023.01.03"]
[WhiteClock "0:00:05"]
[BlackClock "0:00:11"]

1. d4 {[%clk 0:02:59]}  Nf6 {[%clk 0:02:51]} 2. c4 {[%clk 0:02:59]}  e6 {[%clk 0:02:49]} 3. Nc3 {[%clk 0:02:59]}  d5 {[%clk 0:02:48]} 4. Bg5 {[%clk 0:02:59]}  Be7 {[%clk 0:02:48]} 5. e3 {[%clk 0:02:58]}  h6 {[%clk 0:02:48]} 6. Bh4 {[%clk 0:02:57]}  O-O {[%clk 0:02:48]} 7. Nf3 {[%clk 0:02:57]}  b6 {[%clk 0:02:46]} 8. Bd3 {[%clk 0:02:51]}  dxc4 {[%clk 0:02:41]} 9. Bxc4 {[%clk 0:02:52]}  Bb7 {[%clk 0:02:40]} 10. O-O {[%clk 0:02:51]}  Nbd7 {[%clk 0:02:38]} 11. Qe2 {[%clk 0:02:48]}  Nd5 {[%clk 0:02:38]} 12. Bg3 {[%clk 0:02:07]}  N7f6 {[%clk 0:02:32]} 13. Rfc1 {[%clk 0:01:57]}  Nxc3 {[%clk 0:02:21]} 14. Rxc3 {[%clk 0:01:55]}  Ne4 {[%clk 0:02:21]} 15. Rc2 {[%clk 0:01:55]}  Nxg3 {[%clk 0:02:21]} 16. hxg3 {[%clk 0:01:55]}  c5 {[%clk 0:02:11]} 17. Ba6 {[%clk 0:01:54]}  Be4 {[%clk 0:02:08]} 18. Bd3 {[%clk 0:01:53]}  Bxd3 {[%clk 0:02:02]} 19. Qxd3 {[%clk 0:01:52]}  Qd5 {[%clk 0:02:00]} 20. e4 {[%clk 0:01:40]}  Qd7 {[%clk 0:01:56]} 21. Rd1 {[%clk 0:01:10]}  Rfd8 {[%clk 0:01:54]} 22. Qa6 {[%clk 0:01:09]}  Bf6 {[%clk 0:01:45]} 23. d5 {[%clk 0:01:07]}  exd5 {[%clk 0:01:42]} 24. Rxd5 {[%clk 0:01:06]}  Qg4 {[%clk 0:01:40]} 25. Re2 {[%clk 0:00:22]}  Rxd5 {[%clk 0:01:26]} 26. exd5 {[%clk 0:00:23]}  Qd7 {[%clk 0:01:26]} 27. Qc4 {[%clk 0:00:16]}  Rc8 {[%clk 0:01:20]} 28. a4 {[%clk 0:00:15]}  Rd8 {[%clk 0:01:15]} 29. Rd2 {[%clk 0:00:15]}  g5 {[%clk 0:01:00]} 30. g4 {[%clk 0:00:15]}  Kg7 {[%clk 0:00:55]} 31. b3 {[%clk 0:00:14]}  Qd6 {[%clk 0:00:52]} 32. g3 {[%clk 0:00:14]}  Re8 {[%clk 0:00:48]} 33. Kg2 {[%clk 0:00:15]}  Re7 {[%clk 0:00:44]} 34. Qb5 {[%clk 0:00:15]}  Rd7 {[%clk 0:00:42]} 35. Qc4 {[%clk 0:00:15]}  Re7 {[%clk 0:00:38]} 36. Qb5 {[%clk 0:00:14]}  Re4 {[%clk 0:00:36]} 37. Qc6 {[%clk 0:00:14]}  Be7 {[%clk 0:00:33]} 38. Nh2 {[%clk 0:00:10]}  Rd4 {[%clk 0:00:28]} 39. Rxd4 {[%clk 0:00:09]}  cxd4 {[%clk 0:00:29]} 40. Qxd6 {[%clk 0:00:10]}  Bxd6 {[%clk 0:00:29]} 41. Kf3 {[%clk 0:00:10]}  d3 {[%clk 0:00:26]} 42. Nf1 {[%clk 0:00:08]}  Bc5 {[%clk 0:00:26]} 43. Ke4 {[%clk 0:00:04]}  Bxf2 {[%clk 0:00:24]} 44. Kxd3 {[%clk 0:00:05]}  Kf6 {[%clk 0:00:24]} 45. Ke4 {[%clk 0:00:06]}  a6 {[%clk 0:00:20]} 46. b4 {[%clk 0:00:02]}  b5 {[%clk 0:00:19]} 47. axb5 {[%clk 0:00:03]}  axb5 {[%clk 0:00:19]} 48. Ne3 {[%clk 0:00:04]}  Be1 {[%clk 0:00:19]} 49. Nf5 {[%clk 0:00:04]}  Bxb4 {[%clk 0:00:19]} 50. d6 {[%clk 0:00:04]}  Ke6 {[%clk 0:00:19]} 51. d7 {[%clk 0:00:04]}  Kxd7 {[%clk 0:00:19]} 52. Nxh6 {[%clk 0:00:04]}  Bd6 {[%clk 0:00:19]} 53. Kd5 {[%clk 0:00:05]}  Bxg3 {[%clk 0:00:18]} 54. Nxf7 {[%clk 0:00:05]}  b4 {[%clk 0:00:13]} 55. Kc4 {[%clk 0:00:05]}  Be1 {[%clk 0:00:11]} 56. Nxg5 {[%clk 0:00:05]}  Ke7 {[%clk 0:00:12]} 57. Ne4 {[%clk 0:00:05]}  Ke6 {[%clk 0:00:11]} 58. Kd4 {[%clk 0:00:06]}  b3 {[%clk 0:00:11]} 59. Nc5+ {[%clk 0:00:06]}  Kf6 {[%clk 0:00:10]} 60. Nxb3 {[%clk 0:00:07]}  Kg5 {[%clk 0:00:11]} 61. Ke4 {[%clk 0:00:05]}  Kxg4 {[%clk 0:00:11]} 1/2-1/2


[Site "https://www.chess.com"]

[Event "Titled Tuesday Blitz January 03 Early 2023"]
[White "Sadykov, Ramil"]
[Black "Bryakin, Mikhail"]
[WhiteFideId "24113590"]
[BlackFideId "4165314"]
[WhiteElo "2345"]
[BlackElo "2455"]
[Result "0-1"]
[Round "02"]
[TimeControl "180+2"]
[Date "2023.01.03"]
[WhiteClock "0:00:01"]
[BlackClock "0:00:13"]

1. e4 {[%clk 0:03:00]}  d5 {[%clk 0:02:43]} 2. exd5 {[%clk 0:02:55]}  Qxd5 {[%clk 0:02:44]} 3. Nc3 {[%clk 0:02:54]}  Qe5+ {[%clk 0:02:32]} 4. Be2 {[%clk 0:02:39]}  Bg4 {[%clk 0:02:07]} 5. d4 {[%clk 0:02:38]}  Bxe2 {[%clk 0:02:07]} 6. Ngxe2 {[%clk 0:02:37]}  Qa5 {[%clk 0:02:08]} 7. O-O {[%clk 0:02:30]}  Nf6 {[%clk 0:01:59]} 8. d5 {[%clk 0:02:23]}  c6 {[%clk 0:01:58]} 9. b4 {[%clk 0:01:31]}  Qd8 {[%clk 0:01:55]} 10. dxc6 {[%clk 0:01:28]}  Nxc6 {[%clk 0:01:56]} 11. b5 {[%clk 0:01:23]}  Qxd1 {[%clk 0:01:52]} 12. Rxd1 {[%clk 0:01:06]}  Ne5 {[%clk 0:01:50]} 13. b6 {[%clk 0:01:04]}  a6 {[%clk 0:01:46]} 14. Bf4 {[%clk 0:01:03]}  Nc4 {[%clk 0:01:44]} 15. Rd4 {[%clk 0:00:53]}  Na5 {[%clk 0:01:38]} 16. Bc7 {[%clk 0:00:43]}  Nc6 {[%clk 0:01:37]} 17. Rd3 {[%clk 0:00:43]}  e6 {[%clk 0:01:34]} 18. Rad1 {[%clk 0:00:39]}  Bc5 {[%clk 0:01:29]} 19. Na4 {[%clk 0:00:37]}  Be7 {[%clk 0:01:23]} 20. c4 {[%clk 0:00:32]}  O-O {[%clk 0:01:21]} 21. f3 {[%clk 0:00:32]}  Rfc8 {[%clk 0:01:18]} 22. a3 {[%clk 0:00:25]}  Ne8 {[%clk 0:01:19]} 23. Bf4 {[%clk 0:00:21]}  e5 {[%clk 0:01:17]} 24. Be3 {[%clk 0:00:22]}  Rd8 {[%clk 0:01:10]} 25. Rd7 {[%clk 0:00:21]}  Nf6 {[%clk 0:01:06]} 26. R7d3 {[%clk 0:00:13]}  Bxa3 {[%clk 0:01:02]} 27. Nec3 {[%clk 0:00:08]}  Rxd3 {[%clk 0:00:55]} 28. Rxd3 {[%clk 0:00:09]}  Nb4 {[%clk 0:00:44]} 29. Rd2 {[%clk 0:00:05]}  Nc6 {[%clk 0:00:31]} 30. c5 {[%clk 0:00:04]}  Bb4 {[%clk 0:00:31]} 31. Rd3 {[%clk 0:00:04]}  Bxc3 {[%clk 0:00:31]} 32. Nxc3 {[%clk 0:00:05]}  Kf8 {[%clk 0:00:29]} 33. Bg5 {[%clk 0:00:04]}  Rd8 {[%clk 0:00:26]} 34. Rxd8+ {[%clk 0:00:02]}  Nxd8 {[%clk 0:00:27]} 35. Bxf6 {[%clk 0:00:03]}  gxf6 {[%clk 0:00:27]} 36. Nd5 {[%clk 0:00:03]}  f5 {[%clk 0:00:26]} 37. Nb4 {[%clk 0:00:02]}  Ke7 {[%clk 0:00:21]} 38. c6 {[%clk 0:00:02]}  bxc6 {[%clk 0:00:20]} 39. Nxa6 {[%clk 0:00:02]}  Nb7 {[%clk 0:00:20]} 40. Nb4 {[%clk 0:00:02]}  Kd6 {[%clk 0:00:20]} 41. Nd3 {[%clk 0:00:01]}  f6 {[%clk 0:00:20]} 42. g4 {[%clk 0:00:01]}  fxg4 {[%clk 0:00:20]} 43. fxg4 {[%clk 0:00:02]}  c5 {[%clk 0:00:19]} 44. Nf2 {[%clk 0:00:02]}  Kd5 {[%clk 0:00:19]} 45. Kf1 {[%clk 0:00:03]}  Nd6 {[%clk 0:00:14]} 46. Ke2 {[%clk 0:00:03]}  Kc6 {[%clk 0:00:14]} 47. g5 {[%clk 0:00:02]}  fxg5 {[%clk 0:00:14]} 48. Ng4 {[%clk 0:00:03]}  e4 {[%clk 0:00:14]} 49. Nf6 {[%clk 0:00:01]}  h6 {[%clk 0:00:14]} 50. Ng8 {[%clk 0:00:02]}  h5 {[%clk 0:00:14]} 51. Nf6 {[%clk 0:00:02]}  h4 {[%clk 0:00:15]} 52. Ke3 {[%clk 0:00:01]}  Kxb6 {[%clk 0:00:14]} 53. Nh7 {[%clk 0:00:01]}  g4 {[%clk 0:00:15]} 54. Nf6 {[%clk 0:00:02]}  g3 {[%clk 0:00:15]} 55. hxg3 {[%clk 0:00:03]}  hxg3 {[%clk 0:00:16]} 56. Nh5 {[%clk 0:00:01]}  g2 {[%clk 0:00:16]} 57. Kf2 {[%clk 0:00:02]}  c4 {[%clk 0:00:17]} 58. Nf4 {[%clk 0:00:01]}  c3 {[%clk 0:00:17]} 59. Nd5+ {[%clk 0:00:02]}  Kc5 {[%clk 0:00:16]} 60. Nxc3 {[%clk 0:00:03]}  e3+ {[%clk 0:00:16]} 61. Kxg2 {[%clk 0:00:02]}  Kd4 {[%clk 0:00:15]} 62. Ne2+ {[%clk 0:00:03]}  Kd3 {[%clk 0:00:15]} 63. Kf3 {[%clk 0:00:04]}  Nc4 {[%clk 0:00:12]} 64. Nf4+ {[%clk 0:00:04]}  Kd2 {[%clk 0:00:13]} 65. Ne2 {[%clk 0:00:01]}  Ne5+ {[%clk 0:00:13]} 0-1


[Site "https://www.chess.com"]

[Event "Titled Tuesday Blitz January 03 Early 2023"]
[White "Dev, Shah"]
[Black "Kopylov, Alexander A."]
[WhiteFideId "35019058"]
[BlackFideId "4164857"]
[WhiteElo "2334"]
[BlackElo "2397"]
[Result "1-0"]
[Round "02"]
[TimeControl "180+2"]
[Date "2023.01.03"]
[WhiteClock "0:00:11"]
[BlackClock "0:01:08"]

1. d4 {[%clk 0:02:57]}  Nf6 {[%clk 0:03:00]} 2. c4 {[%clk 0:02:56]}  e6 {[%clk 0:03:00]} 3. g3 {[%clk 0:02:56]}  d5 {[%clk 0:03:00]} 4. Bg2 {[%clk 0:02:56]}  Be7 {[%clk 0:03:00]} 5. Nf3 {[%clk 0:02:55]}  O-O {[%clk 0:03:00]} 6. O-O {[%clk 0:02:55]}  dxc4 {[%clk 0:03:01]} 7. Qa4 {[%clk 0:02:56]}  Bd7 {[%clk 0:03:00]} 8. Qxc4 {[%clk 0:02:56]}  Bc6 {[%clk 0:03:01]} 9. Nc3 {[%clk 0:02:55]}  Nbd7 {[%clk 0:03:00]} 10. Rd1 {[%clk 0:02:45]}  a6 {[%clk 0:02:58]} 11. Ne5 {[%clk 0:02:40]}  Bxg2 {[%clk 0:02:57]} 12. Kxg2 {[%clk 0:02:40]}  c6 {[%clk 0:02:48]} 13. Nxd7 {[%clk 0:02:32]}  Qxd7 {[%clk 0:02:47]} 14. Bf4 {[%clk 0:02:29]}  Nd5 {[%clk 0:02:45]} 15. Nxd5 {[%clk 0:02:26]}  cxd5 {[%clk 0:02:36]} 16. Qd3 {[%clk 0:02:26]}  Rac8 {[%clk 0:02:35]} 17. Rac1 {[%clk 0:02:17]}  Qa4 {[%clk 0:02:35]} 18. a3 {[%clk 0:02:10]}  h6 {[%clk 0:02:34]} 19. Rxc8 {[%clk 0:02:05]}  Rxc8 {[%clk 0:02:35]} 20. Rc1 {[%clk 0:02:05]}  Rxc1 {[%clk 0:02:23]} 21. Bxc1 {[%clk 0:02:06]}  Bf6 {[%clk 0:02:22]} 22. Be3 {[%clk 0:01:44]}  h5 {[%clk 0:02:08]} 23. h4 {[%clk 0:01:37]}  g6 {[%clk 0:02:07]} 24. f3 {[%clk 0:01:23]}  Kf8 {[%clk 0:02:05]} 25. Bf2 {[%clk 0:01:19]}  Qc6 {[%clk 0:01:59]} 26. e4 {[%clk 0:01:13]}  Bd8 {[%clk 0:01:51]} 27. e5 {[%clk 0:01:02]}  Bb6 {[%clk 0:01:41]} 28. Qb3 {[%clk 0:01:01]}  Ke8 {[%clk 0:01:38]} 29. g4 {[%clk 0:00:56]}  Kd7 {[%clk 0:01:36]} 30. gxh5 {[%clk 0:00:54]}  gxh5 {[%clk 0:01:37]} 31. Qd3 {[%clk 0:00:55]}  Qc1 {[%clk 0:01:16]} 32. Qh7 {[%clk 0:00:54]}  Qf4 {[%clk 0:01:17]} 33. Qxh5 {[%clk 0:00:54]}  Bd8 {[%clk 0:01:12]} 34. Qg4 {[%clk 0:00:53]}  Qh6 {[%clk 0:01:09]} 35. h5 {[%clk 0:00:47]}  Bg5 {[%clk 0:01:09]} 36. Kh3 {[%clk 0:00:35]}  Bc1 {[%clk 0:01:09]} 37. Bg3 {[%clk 0:00:23]}  Bxb2 {[%clk 0:01:06]} 38. Bf4 {[%clk 0:00:23]}  Qh7 {[%clk 0:01:07]} 39. h6 {[%clk 0:00:22]}  Bxd4 {[%clk 0:01:07]} 40. Qg5 {[%clk 0:00:19]}  Bc5 {[%clk 0:01:03]} 41. Kg3 {[%clk 0:00:17]}  Bf8 {[%clk 0:01:03]} 42. Qf6 {[%clk 0:00:17]}  d4 {[%clk 0:01:02]} 43. Bg5 {[%clk 0:00:17]}  Kc6 {[%clk 0:01:01]} 44. Qd8 {[%clk 0:00:16]}  Bc5 {[%clk 0:01:00]} 45. Qc8+ {[%clk 0:00:10]}  Kd5 {[%clk 0:01:00]} 46. Qxb7+ {[%clk 0:00:10]}  Kc4 {[%clk 0:00:59]} 47. Qxa6+ {[%clk 0:00:09]}  Kd5 {[%clk 0:00:59]} 48. Qb7+ {[%clk 0:00:07]}  Kc4 {[%clk 0:00:59]} 49. Qe4 {[%clk 0:00:06]}  Kc3 {[%clk 0:01:00]} 50. Qxh7 {[%clk 0:00:06]}  d3 {[%clk 0:01:01]} 51. Qxd3+ {[%clk 0:00:06]}  Kxd3 {[%clk 0:01:02]} 52. h7 {[%clk 0:00:07]}  Bf2+ {[%clk 0:01:02]} 53. Kxf2 {[%clk 0:00:07]}  Kd4 {[%clk 0:01:03]} 54. h8=Q {[%clk 0:00:08]}  f5 {[%clk 0:01:04]} 55. exf6 {[%clk 0:00:08]}  Kc3 {[%clk 0:01:05]} 56. f7+ {[%clk 0:00:09]}  Kb3 {[%clk 0:01:06]} 57. f8=Q {[%clk 0:00:09]}  e5 {[%clk 0:01:07]} 58. Qb4+ {[%clk 0:00:10]}  Ka2 {[%clk 0:01:08]} 59. Qc8 {[%clk 0:00:10]}  Ka1 {[%clk 0:01:08]} 60. Qc1+ {[%clk 0:00:10]}  Ka2 {[%clk 0:01:08]} 61. Qcb2# {[%clk 0:00:11]} 1-0


[Site "https://www.chess.com"]

[Event "Titled Tuesday Blitz January 03 Early 2023"]
[White "Hirneise, Jens"]
[Black "Donchenko, Alexander"]
[WhiteFideId "24614734"]
[BlackFideId "24603295"]
[WhiteElo "2277"]
[BlackElo "2669"]
[Result "0-1"]
[Round "02"]
[TimeControl "180+2"]
[Date "2023.01.03"]
[WhiteClock "0:01:04"]
[BlackClock "0:01:51"]

1. Nf3 {[%clk 0:02:22]}  d5 {[%clk 0:02:58]} 2. c4 {[%clk 0:02:23]}  d4 {[%clk 0:02:58]} 3. e3 {[%clk 0:02:22]}  c5 {[%clk 0:02:58]} 4. exd4 {[%clk 0:02:21]}  cxd4 {[%clk 0:02:59]} 5. d3 {[%clk 0:02:20]}  Nc6 {[%clk 0:02:59]} 6. g3 {[%clk 0:02:18]}  e5 {[%clk 0:02:57]} 7. Bg2 {[%clk 0:02:18]}  Bd6 {[%clk 0:02:57]} 8. O-O {[%clk 0:02:17]}  Nge7 {[%clk 0:02:57]} 9. a3 {[%clk 0:02:14]}  a5 {[%clk 0:02:57]} 10. Ne1 {[%clk 0:02:15]}  O-O {[%clk 0:02:56]} 11. Nc2 {[%clk 0:02:15]}  Bf5 {[%clk 0:02:53]} 12. Re1 {[%clk 0:02:07]}  Qd7 {[%clk 0:02:50]} 13. Qe2 {[%clk 0:02:01]}  Bg4 {[%clk 0:02:41]} 14. Qf1 {[%clk 0:01:55]}  Rab8 {[%clk 0:02:30]} 15. Nd2 {[%clk 0:01:49]}  b5 {[%clk 0:02:30]} 16. cxb5 {[%clk 0:01:49]}  Rxb5 {[%clk 0:02:31]} 17. Nc4 {[%clk 0:01:50]}  Bc7 {[%clk 0:02:31]} 18. b4 {[%clk 0:01:39]}  axb4 {[%clk 0:02:26]} 19. Nxb4 {[%clk 0:01:40]}  Nxb4 {[%clk 0:02:23]} 20. axb4 {[%clk 0:01:41]}  Nc6 {[%clk 0:02:20]} 21. f4 {[%clk 0:01:32]}  exf4 {[%clk 0:02:16]} 22. Bxf4 {[%clk 0:01:33]}  Rxb4 {[%clk 0:02:06]} 23. Rac1 {[%clk 0:01:11]}  Bxf4 {[%clk 0:01:53]} 24. Qxf4 {[%clk 0:01:12]}  Bh3 {[%clk 0:01:52]} 25. Bxh3 {[%clk 0:01:06]}  Qxh3 {[%clk 0:01:53]} 26. Nd6 {[%clk 0:01:04]}  Rb2 {[%clk 0:01:51]} 0-1


[Site "https://www.chess.com"]

[Event "Titled Tuesday Blitz January 03 Early 2023"]
[White "Costachi, Mihnea"]
[Black "Seemann, Jakub"]
[WhiteFideId "1217518"]
[BlackFideId "21874697"]
[WhiteElo "2476"]
[BlackElo "2446"]
[Result "1-0"]
[Round "02"]
[TimeControl "180+2"]
[Date "2023.01.03"]
[WhiteClock "0:00:07"]
[BlackClock "0:00:04"]

1. Nc3 {[%clk 0:03:00]}  Nf6 {[%clk 0:02:56]} 2. e4 {[%clk 0:02:59]}  e5 {[%clk 0:02:54]} 3. Bc4 {[%clk 0:02:59]}  Nc6 {[%clk 0:02:47]} 4. d3 {[%clk 0:02:59]}  Na5 {[%clk 0:02:43]} 5. Be3 {[%clk 0:02:46]}  c6 {[%clk 0:02:40]} 6. Nf3 {[%clk 0:02:39]}  Nxc4 {[%clk 0:02:32]} 7. dxc4 {[%clk 0:02:38]}  Bb4 {[%clk 0:02:31]} 8. Nxe5 {[%clk 0:02:36]}  d6 {[%clk 0:02:02]} 9. Nd3 {[%clk 0:02:30]}  Bxc3+ {[%clk 0:02:02]} 10. bxc3 {[%clk 0:02:31]}  Nxe4 {[%clk 0:02:02]} 11. O-O {[%clk 0:02:32]}  O-O {[%clk 0:02:02]} 12. c5 {[%clk 0:02:27]}  Nxc3 {[%clk 0:01:51]} 13. Qd2 {[%clk 0:02:24]}  Ne4 {[%clk 0:01:50]} 14. Qb4 {[%clk 0:02:25]}  Nxc5 {[%clk 0:01:36]} 15. Nxc5 {[%clk 0:02:23]}  dxc5 {[%clk 0:01:36]} 16. Bxc5 {[%clk 0:02:23]}  Re8 {[%clk 0:01:36]} 17. Rad1 {[%clk 0:02:21]}  Qg5 {[%clk 0:01:33]} 18. Be7 {[%clk 0:02:15]}  Qg4 {[%clk 0:01:23]} 19. Rd4 {[%clk 0:01:55]}  a5 {[%clk 0:01:01]} 20. Qb6 {[%clk 0:01:37]}  Qg6 {[%clk 0:00:47]} 21. Rfd1 {[%clk 0:01:13]}  Bh3 {[%clk 0:00:44]} 22. g3 {[%clk 0:01:14]}  h6 {[%clk 0:00:33]} 23. Qxb7 {[%clk 0:01:11]}  Qe6 {[%clk 0:00:31]} 24. Rh4 {[%clk 0:00:45]}  Bg4 {[%clk 0:00:21]} 25. Rc1 {[%clk 0:00:35]}  Bf3 {[%clk 0:00:21]} 26. Rf4 {[%clk 0:00:31]}  Bd5 {[%clk 0:00:21]} 27. c4 {[%clk 0:00:24]}  Rab8 {[%clk 0:00:12]} 28. Qa7 {[%clk 0:00:19]}  Qxe7 {[%clk 0:00:07]} 29. Qxe7 {[%clk 0:00:18]}  Rxe7 {[%clk 0:00:08]} 30. cxd5 {[%clk 0:00:19]}  cxd5 {[%clk 0:00:09]} 31. Rc5 {[%clk 0:00:17]}  Rd7 {[%clk 0:00:06]} 32. Rd4 {[%clk 0:00:17]}  a4 {[%clk 0:00:05]} 33. Ra5 {[%clk 0:00:15]}  Rb1+ {[%clk 0:00:03]} 34. Kg2 {[%clk 0:00:15]}  Rb8 {[%clk 0:00:02]} 35. h4 {[%clk 0:00:14]}  Rc8 {[%clk 0:00:02]} 36. Raxa4 {[%clk 0:00:15]}  Rc5 {[%clk 0:00:02]} 37. Kf3 {[%clk 0:00:13]}  g6 {[%clk 0:00:02]} 38. Rab4 {[%clk 0:00:13]}  Kg7 {[%clk 0:00:03]} 39. h5 {[%clk 0:00:13]}  Rc3+ {[%clk 0:00:03]} 40. Kg4 {[%clk 0:00:13]}  f5+ {[%clk 0:00:02]} 41. Kf4 {[%clk 0:00:12]}  gxh5 {[%clk 0:00:02]} 42. Rb5 {[%clk 0:00:10]}  Rc2 {[%clk 0:00:02]} 43. f3 {[%clk 0:00:07]}  Rxa2 {[%clk 0:00:02]} 44. Rbxd5 {[%clk 0:00:07]}  Rxd5 {[%clk 0:00:02]} 45. Rxd5 {[%clk 0:00:08]}  Ra3 {[%clk 0:00:03]} 46. Rxf5 {[%clk 0:00:07]}  Kg6 {[%clk 0:00:03]} 47. Re5 {[%clk 0:00:06]}  Ra4+ {[%clk 0:00:04]} 48. Re4 {[%clk 0:00:07]}  Ra6 {[%clk 0:00:04]} 49. Rd4 {[%clk 0:00:07]}  Rf6+ {[%clk 0:00:05]} 50. Ke4 {[%clk 0:00:07]}  Re6+ {[%clk 0:00:05]} 51. Kf4 {[%clk 0:00:08]}  Rf6+ {[%clk 0:00:05]} 52. Ke3 {[%clk 0:00:08]}  Re6+ {[%clk 0:00:05]} 53. Re4 {[%clk 0:00:09]}  Ra6 {[%clk 0:00:05]} 54. Rb4 {[%clk 0:00:09]}  Ra3+ {[%clk 0:00:05]} 55. Kf4 {[%clk 0:00:09]}  Ra6 {[%clk 0:00:06]} 56. Rb5 {[%clk 0:00:09]}  Rf6+ {[%clk 0:00:06]} 57. Ke4 {[%clk 0:00:10]}  Re6+ {[%clk 0:00:07]} 58. Re5 {[%clk 0:00:10]}  Ra6 {[%clk 0:00:06]} 59. Rd5 {[%clk 0:00:10]}  Ra4+ {[%clk 0:00:07]} 60. Rd4 {[%clk 0:00:11]}  Ra6 {[%clk 0:00:07]} 61. Ke5 {[%clk 0:00:11]}  Ra5+ {[%clk 0:00:06]} 62. Kf4 {[%clk 0:00:10]}  Ra6 {[%clk 0:00:06]} 63. Ke3 {[%clk 0:00:10]}  Re6+ {[%clk 0:00:06]} 64. Kf2 {[%clk 0:00:10]}  Ra6 {[%clk 0:00:06]} 65. Kg2 {[%clk 0:00:11]}  Ra2+ {[%clk 0:00:06]} 66. Kh3 {[%clk 0:00:11]}  Ra3 {[%clk 0:00:06]} 67. Rd6+ {[%clk 0:00:11]}  Kg7 {[%clk 0:00:04]} 68. f4 {[%clk 0:00:12]}  Ra1 {[%clk 0:00:04]} 69. Rd5 {[%clk 0:00:11]}  Rh1+ {[%clk 0:00:04]} 70. Kg2 {[%clk 0:00:11]}  Ra1 {[%clk 0:00:05]} 71. Rxh5 {[%clk 0:00:12]}  Kg6 {[%clk 0:00:05]} 72. Rc5 {[%clk 0:00:11]}  Ra3 {[%clk 0:00:05]} 73. Kh3 {[%clk 0:00:12]}  Ra1 {[%clk 0:00:06]} 74. Rc6+ {[%clk 0:00:12]}  Kf5 {[%clk 0:00:03]} 75. Rc5+ {[%clk 0:00:10]}  Kg6 {[%clk 0:00:03]} 76. Kg4 {[%clk 0:00:10]}  Ra2 {[%clk 0:00:02]} 77. Rc6+ {[%clk 0:00:10]}  Kg7 {[%clk 0:00:03]} 78. Rc7+ {[%clk 0:00:10]}  Kf6 {[%clk 0:00:02]} 79. Rc6+ {[%clk 0:00:10]}  Kg7 {[%clk 0:00:03]} 80. Re6 {[%clk 0:00:09]}  Kh7 {[%clk 0:00:03]} 81. Kf5 {[%clk 0:00:09]}  Kg7 {[%clk 0:00:03]} 82. Re7+ {[%clk 0:00:09]}  Kf8 {[%clk 0:00:04]} 83. Rb7 {[%clk 0:00:08]}  Ra5+ {[%clk 0:00:04]} 84. Kg6 {[%clk 0:00:08]}  Ra6+ {[%clk 0:00:04]} 85. Kh5 {[%clk 0:00:08]}  Ra3 {[%clk 0:00:05]} 86. g4 {[%clk 0:00:06]}  Rh3+ {[%clk 0:00:04]} 87. Kg6 {[%clk 0:00:06]}  Rg3 {[%clk 0:00:04]} 88. Kf6 {[%clk 0:00:07]}  Kg8 {[%clk 0:00:04]} 89. Kf5 {[%clk 0:00:07]}  Ra3 {[%clk 0:00:04]} 90. Re7 {[%clk 0:00:06]}  Ra6 {[%clk 0:00:04]} 91. Re6 {[%clk 0:00:06]}  Ra5+ {[%clk 0:00:03]} 92. Kg6 {[%clk 0:00:06]}  Kf8 {[%clk 0:00:02]} 93. Kxh6 {[%clk 0:00:07]}  Kf7 {[%clk 0:00:02]} 94. Rb6 {[%clk 0:00:06]}  Ra1 {[%clk 0:00:02]} 95. Kg5 {[%clk 0:00:06]}  Rh1 {[%clk 0:00:03]} 96. Rb7+ {[%clk 0:00:06]}  Kg8 {[%clk 0:00:03]} 97. f5 {[%clk 0:00:07]}  Rf1 {[%clk 0:00:03]} 98. Kg6 {[%clk 0:00:07]}  Ra1 {[%clk 0:00:04]} 99. Rb8# {[%clk 0:00:07]} 1-0


[Site "https://www.chess.com"]